bitfinex/quotes_ETHUSD_20240827
["timestamp","ask_amount","ask_price","bid_price","bid_amount"]
[1724798464418,9.0822,2457.6,2455.8,4.01493556]
[1724798464572,1.31511444,2457.8,2455.9,0.0814079]
[1724798464573,9.0822,2457.4,2455.9,0.0814079]
[1724798464774,0.08142775,2457.3,2455.7,6.45632475]
[1724798465003,9.0822,2457.2,2455.7,6.45632475]
[1724798465187,0.55,2457.8,2454.8,8.86622475]
[1724798465188,9.0822,2457.0,2455.8,1.60792248]
[1724798465410,0.55,2457.8,2454.5,6.45632475]
[1724798465411,9.0822,2456.8,2454.5,6.45632475]
[1724798465591,9.0822,2456.4,2454.6,0.64563248]
[1724798465777,6.45632475,2456.5,2454.3,9.6229]
[1724798465778,9.6024,2456.2,2454.3,9.6229]
[1724798465978,9.5524,2456.0,2454.1,6.45632475]
[1724798466214,0.63142775,2455.9,2454.2,4.01493556]
[1724798466421,0.17445665,2455.9,2454.2,4.01493556]
[1724798466622,0.55,2455.8,2454.2,4.01493556]
[1724798466781,0.08142775,2455.7,2454.3,1.04712603]
[1724798466983,0.55,2455.6,2454.3,1.04712603]
[1724798467288,0.08142775,2455.5,2454.2,4.01493556]
[1724798467522,0.08142775,2455.5,2453.6,0.31381133]
[1724798467523,0.64187102,2455.4,2453.6,0.31381133]
[1724798467725,0.64187102,2455.4,2453.3,6.45632475]
[1724798467726,0.08142775,2455.3,2453.7,35.0]
[1724798468012,0.55,2455.2,2453.8,3.5]
[1724798468227,0.63142775,2455.2,2453.6,9.6888]
[1724798468379,0.08142775,2455.1,2453.9,35.0]
[1724798468578,0.55,2455.0,2454.0,3.58147405]
[1724798468804,0.63917765,2455.2,2454.0,3.58147405]
[1724798468805,0.55,2455.2,2454.0,3.58147405]
[1724798469007,9.8702,2455.1,2454.1,3.8581474]
[1724798469215,0.63906292,2455.0,2454.1,3.8581474]
[1724798469425,0.63906292,2455.0,2454.2,0.08146709]
[1724798469594,0.63906292,2455.0,2454.3,0.08146709]
[1724798469794,0.08906292,2455.0,2454.5,6.45632475]
[1724798470020,0.08906292,2455.0,2454.6,0.64563248]
[1724798470221,9.5546,2455.5,2454.6,3.64563248]
[1724798470428,7.72786434,2457.0,2454.7,0.08144774]
[1724798470611,0.0855361,2455.4,2454.7,36.0563169]
[1724798470948,9.2589,2455.7,2454.8,3.08144472]
[1724798471098,9.2589,2456.2,2454.9,10.37010091]
[1724798471298,6.86622475,2457.4,2455.1,9.0484]
[1724798471299,0.0855361,2455.6,2455.1,9.0484]
[1724798471496,9.6144,2457.7,2455.5,46.0484]
[1724798471727,9.6144,2457.7,2456.7,6.45632475]
[1724798471931,9.6144,2458.1,2456.8,3.64563248]
[1724798472234,9.6144,2458.1,2456.8,3.0]
[1724798472434,9.6144,2458.1,2456.4,38.0]
[1724798472740,9.0936,2457.8,2455.7,9.3716]
[1724798472931,9.0936,2457.8,2455.8,3.0]
[1724798473303,9.0936,2457.8,2455.9,6.45632475]
[1724798473636,9.0936,2457.8,2456.3,6.45632475]
[1724798473792,9.0936,2457.8,2456.4,0.64563248]
[1724798473993,9.0936,2457.8,2456.7,6.45632475]
[1724798474195,0.1227464,2458.4,2457.1,6.45632475]
[1724798474196,9.0936,2458.3,2457.1,6.45632475]
[1724798474425,9.0936,2458.3,2457.2,3.0]
[1724798474700,9.0936,2458.3,2457.3,0.94563248]
[1724798474912,9.0936,2458.3,2456.5,9.3716]
[1724798474913,0.08142775,2458.2,2456.8,3.0]
[1724798475099,9.0936,2458.1,2456.8,3.0]
[1724798475318,10.09253053,2458.0,2456.4,3.64563248]
[1724798475522,9.17502775,2458.0,2456.5,0.08139147]
[1724798476046,9.0936,2458.0,2456.4,3.64563248]
[1724798476332,9.0936,2458.0,2456.6,0.08138293]
[1724798476556,0.1227464,2458.4,2456.7,16.25952475]
[1724798476774,0.1227464,2458.4,2457.1,6.45632475]
[1724798476925,0.1227464,2458.4,2457.2,3.0]
[1724798477132,0.1227464,2458.4,2457.5,6.45632475]
[1724798477357,0.1227464,2458.4,2457.6,3.0813436]
[1724798477526,0.1227464,2458.4,2457.6,3.0]
[1724798477725,0.1227464,2458.4,2457.7,0.94563248]
[1724798478859,0.1227464,2458.4,2457.2,3.0]
[1724798480454,0.1227464,2458.4,2457.1,6.45632475]
[1724798480625,9.7337,2458.3,2456.8,1.62595248]
[1724798480830,10.37390672,2458.3,2457.1,6.45632475]
[1724798481829,10.37390672,2458.3,2456.7,6.45632475]
[1724798481830,3.08142775,2458.2,2456.7,6.45632475]
[1724798482063,9.7337,2458.0,2456.4,0.47820511]
[1724798482267,9.7337,2458.0,2455.8,2.46580782]
[1724798482268,9.7337,2457.8,2455.8,0.46580782]
[1724798482453,9.81512775,2457.7,2455.9,0.33146423]
[1724798482657,9.7337,2457.5,2455.9,0.33146423]
[1724798482864,1.21805599,2457.6,2455.9,0.33146423]
[1724798482865,9.7337,2457.3,2455.9,0.33146423]
[1724798483028,0.55,2457.2,2455.9,0.33146423]
[1724798483229,0.72163447,2457.2,2455.9,0.33146423]
[1724798483555,0.09020672,2457.2,2456.5,6.45632475]
[1724798483758,0.09020672,2457.2,2456.1,6.45632475]
[1724798483759,0.55,2457.1,2456.1,6.45632475]
[1724798483959,9.7337,2457.0,2455.7,6.45632475]
[1724798484205,0.55,2456.9,2456.2,0.47820511]
[1724798484406,0.55,2456.9,2456.3,0.08140829]
[1724798484407,9.7337,2456.7,2456.3,0.08140829]
[1724798484715,9.7337,2456.7,2455.7,7.40885475]
[1724798484716,9.7337,2456.7,2455.8,0.08140564]
[1724798484902,0.08971368,2456.6,2455.9,0.08141417]
[1724798485116,9.7337,2456.7,2455.9,0.08141417]
[1724798485275,7.72786434,2458.0,2456.3,6.45632475]
[1724798485276,0.08953015,2456.5,2456.3,6.45632475]
[1724798485480,9.7337,2458.0,2456.4,10.64764407]
[1724798485680,0.08142775,2457.9,2456.4,16.62725723]
[1724798485880,9.7337,2457.8,2456.5,1.74411095]
[1724798486130,9.7337,2457.8,2456.3,0.47671159]
[1724798486480,0.08142775,2457.7,2456.1,3.0]
[1724798486677,0.08142775,2457.7,2456.2,0.47671159]
[1724798487044,9.224,2457.5,2456.1,3.0]
[1724798487253,9.224,2457.5,2455.6,6.45632475]
[1724798487254,9.224,2457.3,2456.2,0.0814192]
[1724798487381,9.224,2457.3,2455.6,6.45632475]
[1724798487582,9.224,2457.3,2456.0,6.45632475]
[1724798487928,9.4729,2457.1,2455.4,9.0459]
[1724798488226,6.45632475,2458.0,2455.5,0.08141005]
[1724798488227,9.55432775,2457.0,2455.5,0.08141005]
[1724798488436,9.55432775,2457.0,2455.5,3.98600005]
[1724798488599,9.4729,2456.8,2455.5,0.90459]
[1724798488932,9.4729,2456.6,2455.0,8.09669723]
[1724798489147,0.08142775,2456.5,2454.9,6.87828634]
[1724798489320,9.4729,2456.6,2455.1,0.42196159]
[1724798489623,9.4729,2456.6,2455.2,1.03174616]
[1724798489840,9.4729,2456.6,2455.3,0.54381735]
[1724798489988,9.4729,2456.6,2455.3,0.46240559]
[1724798490335,9.4729,2456.6,2455.8,6.45632475]
[1724798490532,9.4729,2456.6,2455.9,3.0]
[1724798490756,1.27153959,2458.1,2456.9,38.81]
[1724798491030,2.53595914,2458.6,2457.3,0.4099]
[1724798491031,9.5717,2458.6,2457.3,0.4099]
[1724798491235,0.0869557,2458.0,2457.9,6.45632475]
[1724798491388,9.5717,2458.6,2457.9,9.45632475]
[1724798491590,0.0869557,2458.3,2458.0,0.94563248]
[1724798491990,0.0869557,2458.3,2457.5,6.45632475]
[1724798492240,0.0869557,2458.3,2457.6,3.0]
[1724798492425,0.0869557,2458.3,2457.9,6.45632475]
[1724798492794,0.0869557,2458.3,2457.6,3.0]
[1724798492795,0.0869557,2458.3,2457.1,6.45632475]
[1724798492995,9.0251,2458.2,2457.2,0.64563248]
[1724798493199,9.0251,2458.2,2457.1,6.45632475]
[1724798493398,0.09001918,2458.1,2457.2,3.0]
[1724798493994,0.09001918,2458.1,2457.5,6.45632475]
[1724798494193,0.09001918,2458.1,2457.6,3.0]
[1724798494493,0.09001918,2458.1,2457.2,3.0]
[1724798495703,0.09001918,2458.1,2457.1,6.45632475]
[1724798495914,0.09001918,2458.1,2457.2,0.70218378]
[1724798496437,0.09001918,2458.1,2457.6,6.45632475]
[1724798497332,9.5063,2458.7,2457.7,0.08135419]
[1724798497639,0.08982422,2458.0,2457.7,3.0]
[1724798497829,9.5063,2458.7,2457.8,0.94563248]
[1724798498136,0.08982422,2458.3,2457.8,0.94563248]
[1724798499358,0.4099,2459.9,2457.8,0.94563248]
[1724798499359,4.3481622,2460.9,2459.1,9.4315]
[1724798499675,0.1227464,2460.9,2460.5,6.45632475]
[1724798499957,0.1227464,2460.9,2459.2,1.84220687]
[1724798499958,0.1227464,2460.9,2460.1,6.45632475]
[1724798500169,0.1227464,2460.9,2460.2,3.0]
[1724798500319,0.1227464,2460.9,2460.5,6.45632475]
[1724798500520,0.1227464,2460.9,2460.6,3.0]
[1724798500769,0.1227464,2460.9,2460.2,3.0]
[1724798500976,0.1227464,2460.9,2460.1,6.45632475]
[1724798500977,0.1227464,2460.9,2459.9,3.0]
[1724798501124,0.1227464,2460.9,2459.8,3.0]
[1724798501322,0.1227464,2460.9,2459.9,0.08127404]
[1724798501517,0.1227464,2460.9,2459.8,3.0]
[1724798501518,0.1227464,2460.9,2460.1,6.45632475]
[1724798501763,0.1227464,2460.9,2460.2,3.0]
[1724798502965,0.1227464,2460.9,2459.9,0.3]
[1724798503164,0.1227464,2460.9,2459.7,6.45632475]
[1724798503564,0.55,2460.8,2459.7,6.45632475]
[1724798504230,9.4537,2460.7,2459.7,6.45632475]
[1724798504490,9.4537,2460.5,2458.9,6.45632475]
[1724798504797,9.4537,2460.5,2459.0,0.64563248]
[1724798504798,0.08142775,2460.4,2459.0,0.64563248]
[1724798504967,0.55,2460.3,2459.0,0.64563248]
[1724798505163,0.55,2460.3,2459.1,0.08130419]
[1724798505366,9.4537,2460.5,2459.1,0.79963033]
[1724798505367,0.63142775,2460.4,2459.1,0.79963033]
[1724798505569,3.63142775,2460.4,2459.1,0.71832614]
[1724798506263,9.6129,2460.3,2459.1,0.71832614]
[1724798506494,9.6129,2460.1,2458.5,6.45632475]
[1724798506695,0.08142775,2460.0,2458.5,6.45632475]
[1724798506920,0.08142775,2460.0,2458.9,6.45632475]
[1724798506921,0.09148186,2460.0,2458.9,6.45632475]
[1724798507218,0.09148186,2460.0,2459.3,6.45632475]
[1724798507415,0.09148186,2460.0,2459.4,0.08128867]
[1724798507618,9.7347,2460.6,2459.7,6.45632475]
[1724798507772,0.09148186,2459.9,2459.8,0.08127384]
[1724798507973,0.1227464,2460.9,2459.8,3.72690632]
[1724798508211,9.6574464,2461.0,2459.9,0.08127159]
[1724798508413,0.08861351,2460.8,2460.1,6.45632475]
[1724798508628,9.6574464,2461.0,2460.1,6.45632475]
[1724798508914,6.86622475,2462.8,2460.2,3.0]
[1724798509071,0.08861351,2460.9,2460.3,0.94563248]
[1724798509277,0.08861351,2460.9,2460.1,6.45632475]
[1724798509479,0.08142775,2462.3,2460.1,6.45632475]
[1724798509698,0.08861351,2460.8,2460.2,3.0]
[1724798509920,0.08142775,2462.2,2460.3,0.94563248]
[1724798510122,0.08856773,2460.7,2460.3,0.94563248]
[1724798510321,0.08142775,2462.2,2459.9,3.0]
[1724798510478,0.08876226,2460.6,2459.8,3.0]
[1724798510823,0.08142775,2462.2,2459.7,6.45632475]
[1724798510824,6.45632475,2462.0,2459.7,6.45632475]
[1724798511120,0.72019001,2461.9,2459.8,0.64563248]
[1724798511318,9.9918,2461.8,2459.8,0.64563248]
[1724798511529,9.9918,2461.6,2459.7,6.45632475]
[1724798511676,9.9918,2461.2,2458.9,6.45632475]
[1724798511875,9.9918,2461.2,2458.4,9.0041]
[1724798511876,9.8784,2460.9,2459.0,0.64563248]
[1724798512110,9.8784,2460.7,2458.8,0.51034049]
[1724798512334,9.8784,2460.5,2458.5,0.51034049]
[1724798512478,0.63142775,2460.4,2458.5,0.51034049]
[1724798512671,3.63142775,2460.4,2458.5,0.51034049]
[1724798512872,9.8784,2460.2,2458.5,0.51034049]
[1724798513123,1.57816576,2460.1,2458.6,0.69666652]
[1724798513326,1.66712296,2460.1,2458.6,0.69666652]
[1724798513475,1.66712296,2460.1,2458.5,0.51034049]
[1724798513476,9.8784,2460.0,2458.0,6.45632475]
[1724798513678,9.95982775,2459.9,2458.0,6.45632475]
[1724798513905,9.8784,2459.8,2458.0,6.45632475]
[1724798514113,9.8784,2459.6,2458.0,6.96666524]
[1724798514319,9.8784,2459.4,2458.1,0.73612285]
[1724798514534,9.8784,2459.1,2456.6,9.5437]
[1724798514684,6.45632475,2458.9,2456.6,9.5437]
[1724798514883,9.95982775,2458.8,2456.7,0.95437]
[1724798515127,9.8784,2458.6,2456.7,7.94647964]
[1724798515295,0.55,2458.5,2456.8,1.74901796]
[1724798515513,0.55,2458.5,2456.9,0.53578489]
[1724798515827,0.0855094,2458.4,2457.0,0.08136293]
[1724798515993,0.0855094,2458.4,2457.1,6.99210964]
[1724798516194,0.0855094,2458.4,2457.2,0.08136263]
[1724798516519,0.55,2458.3,2457.1,0.53578489]
[1724798516718,0.55,2458.3,2457.0,0.23661658]
[1724798516719,9.87052775,2458.2,2457.0,0.23661658]
[1724798516891,9.87052775,2458.2,2456.7,7.41069475]
[1724798516892,0.55,2458.1,2456.7,7.41069475]
[1724798517094,0.55,2458.1,2457.0,0.53578489]
[1724798517095,0.58142775,2458.1,2457.0,0.53578489]
[1724798517323,0.58142775,2458.1,2456.7,7.91212964]
[1724798517493,0.0846837,2458.0,2456.8,1.24250437]
[1724798518300,0.0846837,2458.0,2457.1,6.45632475]
[1724798518523,6.45632475,2459.7,2457.5,6.45632475]
[1724798518524,9.6988,2459.7,2457.5,6.45632475]
[1724798518827,6.45632475,2460.0,2457.6,1.22841724]
[1724798518828,0.08017462,2457.9,2457.6,1.22841724]
[1724798519031,9.6988,2458.6,2457.6,0.72698235]
[1724798519185,0.08017462,2457.8,2457.6,0.72698235]
[1724798519531,9.6988,2458.6,2457.7,0.71833071]
[1724798519700,0.08017462,2457.7,2457.2,3.0]
[1724798519901,9.6988,2458.6,2457.3,0.50143489]
[1724798520102,9.6988,2458.6,2457.4,0.35014349]
[1724798520306,0.08017462,2458.5,2457.5,6.95775964]
[1724798520526,0.03142775,2459.8,2457.9,6.45632475]
[1724798520831,10.31921197,2459.9,2457.6,14.7532]
[1724798520832,0.08017462,2458.4,2458.3,6.45632475]
[1724798521003,0.03142775,2459.8,2458.3,0.50143489]
[1724798521201,0.03142775,2459.8,2458.0,3.64563248]
[1724798521202,9.894,2459.7,2458.0,0.64563248]
[1724798521424,9.894,2459.4,2456.8,0.74106948]
[1724798521592,9.92542775,2459.3,2457.0,6.45632475]
[1724798521833,6.45632475,2459.5,2457.1,0.64563248]
[1724798521834,9.894,2459.0,2457.1,0.64563248]
[1724798522037,9.92542775,2458.9,2456.6,6.45632475]
[1724798522349,9.894,2458.7,2456.7,0.58280419]
[1724798522551,0.58142775,2458.6,2456.8,0.70391289]
[1724798522877,9.7422,2458.5,2456.8,0.70391289]
[1724798523181,9.7422,2458.5,2456.8,1.20534778]
[1724798523182,3.58142775,2458.4,2456.8,1.20534778]
[1724798523887,9.7422,2458.5,2457.0,6.45632475]
[1724798523888,0.08017462,2458.3,2457.0,6.45632475]
[1724798524195,0.08017462,2458.3,2456.6,0.55353454]
[1724798524196,9.5205,2458.2,2457.1,0.70391318]
[1724798524335,0.03142775,2458.1,2456.7,3.0]
[1724798524544,0.11138417,2458.1,2456.7,3.0]
[1724798524762,0.11138417,2458.1,2456.2,9.2032]
[1724798524964,0.55,2458.0,2456.3,1.00169628]
[1724798525280,0.07994494,2457.9,2456.3,1.50313117]
[1724798525482,0.11137269,2457.9,2456.4,1.07063312]
[1724798525691,0.07994494,2457.9,2456.4,1.07063312]
[1724798525857,9.05092775,2457.8,2456.4,1.07063312]
[1724798526054,0.07992197,2457.7,2456.5,0.08137451]
[1724798526363,0.07992197,2457.7,2456.5,1.26226813]
[1724798526562,0.07992197,2457.7,2456.5,0.76083324]
[1724798526798,0.11134972,2457.7,2456.5,0.76083324]
[1724798526954,0.11134972,2457.7,2456.6,0.0813883]
[1724798526955,0.07992197,2457.7,2456.6,0.0813883]
[1724798527156,9.0195,2457.8,2456.6,0.0813883]
[1724798527488,0.07971521,2457.7,2456.7,0.50143489]
[1724798527697,0.07971521,2457.7,2456.2,6.45632475]
[1724798527879,0.03142775,2457.7,2456.3,3.0]
[1724798528099,0.07965778,2457.6,2456.3,3.0]
[1724798528404,0.07965778,2457.6,2456.4,0.94563248]
[1724798529006,0.07965778,2457.6,2455.7,9.53286822]
[1724798529007,9.0195,2457.4,2456.5,0.08139707]
[1724798529213,0.03142775,2457.3,2456.0,6.45632475]
[1724798529507,0.07909497,2457.3,2456.1,3.0]
[1724798529708,0.03142775,2457.3,2456.2,0.94563248]
[1724798530677,9.9782,2457.2,2455.2,6.45632475]
[1724798530879,9.9782,2457.2,2455.6,6.45632475]
[1724798531113,0.07848599,2457.1,2456.0,6.45632475]
[1724798531422,9.9782,2457.2,2456.0,6.5377101]
[1724798531565,9.9782,2457.2,2456.1,0.41226822]
[1724798531765,9.9782,2457.2,2456.2,0.69499783]
[1724798532266,9.9782,2457.2,2456.1,3.0]
[1724798532612,0.03142775,2457.1,2455.7,3.0]
[1724798532967,0.58142775,2457.1,2455.7,3.0]
[1724798533179,9.9782,2457.2,2456.0,6.45632475]
[1724798534500,9.9782,2457.2,2456.1,3.0]
[1724798534685,9.9782,2457.2,2456.2,0.08139886]
[1724798534870,9.9782,2457.2,2456.2,0.08138877]
[1724798535297,9.9782,2457.2,2456.1,3.0]
[1724798535480,9.4892,2456.8,2454.7,0.84883448]
[1724798535685,0.03142775,2457.1,2454.8,0.0814417]
[1724798535686,9.4892,2456.4,2454.8,0.0814417]
[1724798535882,0.03142775,2456.3,2454.4,2.0]
[1724798536081,9.4892,2456.4,2454.5,0.08143157]
[1724798536082,0.07840553,2456.2,2454.5,0.08143157]
[1724798536403,9.4892,2456.4,2454.7,6.45632475]
[1724798536705,9.4892,2456.4,2454.6,9.7061]
[1724798536706,9.4892,2456.4,2454.8,0.53747477]
[1724798537018,0.07840553,2456.3,2454.8,0.53747477]
[1724798537511,9.4892,2456.2,2454.7,0.53747477]
[1724798537809,9.4892,2456.2,2454.7,2.00321909]
[1724798538205,0.07840553,2456.1,2454.7,2.00321909]
[1724798538516,0.10983328,2456.1,2454.7,2.00321909]
[1724798538813,0.07840553,2456.1,2454.8,1.17093191]
[1724798539279,0.07840553,2456.1,2454.8,1.70840668]
[1724798540828,0.10983328,2456.1,2454.8,1.70840668]
[1724798541027,9.8131,2456.0,2454.5,0.63934316]
[1724798541228,9.8131,2456.0,2454.0,0.53747477]
[1724798541229,9.2631,2455.8,2454.0,0.53747477]
[1724798541396,9.2631,2455.6,2454.0,0.53747477]
[1724798541592,9.2631,2455.4,2454.1,0.69937995]
[1724798541793,0.03142775,2455.3,2454.0,0.53747477]
[1724798542114,9.2631,2455.4,2454.0,0.53747477]
[1724798542319,0.07694583,2455.2,2454.0,0.53747477]
[1724798542633,9.2631,2455.4,2454.0,0.53747477]
[1724798542832,0.07587654,2455.1,2454.0,0.53747477]
[1724798543001,10.18941,2455.4,2454.0,0.53747477]
[1724798543208,0.07587654,2455.0,2454.0,0.53747477]
[1724798543530,0.07587654,2454.9,2453.5,0.1227464]
[1724798543699,9.2631,2454.8,2453.6,2.50542083]
[1724798544088,0.07587654,2454.7,2453.6,2.50542083]
[1724798544494,0.07587654,2454.7,2453.6,2.42394378]
[1724798544690,9.2631,2455.0,2453.7,0.942921]
[1724798544939,0.07587654,2454.6,2453.8,0.08147274]
[1724798545143,9.2631,2455.0,2453.9,0.53747477]
[1724798545435,1.27153959,2457.5,2453.9,0.53747477]
[1724798545436,9.1105,2456.6,2454.0,0.0814642]
[1724798545630,0.05,2457.4,2454.1,0.53747477]
[1724798545631,9.1105,2456.4,2454.1,0.53747477]
[1724798545933,0.96697349,2456.5,2453.8,3.0]
[1724798545934,9.1105,2456.2,2453.8,3.0]
[1724798546117,9.852808,2456.1,2453.9,1.33340748]
[1724798546320,0.408,2456.0,2453.9,1.33340748]
[1724798546517,6.45632475,2455.6,2453.9,1.33340748]
[1724798546708,9.91980429,2455.5,2453.9,1.33340748]
[1724798547036,9.8125,2455.3,2454.0,0.43334075]
[1724798547238,9.8125,2455.3,2453.9,1.33340748]
[1724798547239,0.03142775,2455.2,2453.9,1.33340748]
[1724798547405,9.8125,2455.1,2453.9,1.33340748]
[1724798547607,0.03142775,2455.0,2453.5,0.1227464]
[1724798547805,9.88837654,2455.1,2453.7,9.4487]
[1724798548136,4.06935,2457.4,2454.0,6.45632475]
[1724798548137,0.07587654,2455.0,2454.0,6.45632475]
[1724798548293,0.07587654,2455.0,2454.1,0.0814455]
[1724798548497,9.6286,2455.5,2453.8,1.43642811]
[1724798548724,0.07587654,2454.9,2453.9,1.12931281]
[1724798548938,9.6286,2455.3,2453.9,4.12931281]
[1724798549235,9.73590429,2455.2,2454.0,0.08147767]
[1724798549433,9.73590429,2455.2,2453.5,0.1227464]
[1724798550032,9.70447654,2455.2,2453.6,0.08146944]
[1724798550336,9.70447654,2455.2,2453.5,0.58347117]
[1724798550535,0.03142775,2455.1,2453.5,0.58347117]
[1724798550835,9.2474,2455.0,2453.5,0.1227464]
[1724798550998,0.03142775,2454.9,2453.5,0.1227464]
[1724798551198,0.10412827,2454.9,2453.5,0.1227464]
[1724798551622,9.3002,2454.8,2453.5,0.1227464]
[1724798552439,0.07270052,2454.7,2453.5,0.1227464]
[1724798553414,9.6023,2454.6,2453.5,0.1227464]
[1724798553612,0.03142775,2454.5,2453.5,0.1227464]
[1724798553951,0.07238961,2454.4,2453.5,0.1227464]
[1724798554932,2.99,2454.0,2453.5,0.1227464]
[1724798555133,0.07221685,2453.9,2453.5,0.1227464]
[1724798555336,0.00427637,2453.9,2453.5,0.1227464]
[1724798555517,0.06794048,2453.9,2453.5,0.1227464]
[1724798555907,9.43174048,2453.9,2453.5,0.1227464]
[1724798557744,9.9451,2453.7,2453.5,0.1227464]
[1724798558107,0.03142775,2453.6,2453.5,0.1227464]
[1724798558306,0.06944101,2453.6,2453.5,0.1227464]
[1724798560561,0.10086876,2453.6,2453.5,0.1227464]
[1724798560708,0.65086876,2453.6,2453.5,0.1227464]
[1724798560908,1.71046564,2453.6,2453.5,0.1227464]
[1724798561226,1.71046564,2453.6,2451.8,15.75502475]
[1724798561227,1.71046564,2453.6,2451.8,9.2987]
[1724798561420,9.8035,2453.5,2451.8,9.2987]
[1724798561622,0.03142775,2453.4,2451.9,0.46072477]
[1724798561909,3.03142775,2453.4,2451.9,0.46072477]
[1724798562142,0.61892248,2453.3,2452.0,0.97594248]
[1724798562342,9.28492775,2453.2,2452.0,0.97594248]
[1724798562549,0.55,2453.1,2451.9,0.46072477]
[1724798562729,0.58142775,2453.1,2451.9,0.46072477]
[1724798563053,9.1792,2452.9,2451.5,0.46072477]
[1724798563206,0.03142775,2452.8,2451.0,16.89399069]
[1724798563535,9.24564507,2452.7,2451.1,0.46072477]
[1724798563737,9.24564507,2452.7,2451.2,1.73547155]
[1724798563738,0.03142775,2452.6,2451.2,1.73547155]
[1724798563953,0.03142775,2452.6,2451.3,0.46072477]
[1724798564113,0.06594921,2452.5,2451.3,0.46072477]
[1724798564846,0.06594921,2452.5,2451.2,1.73547155]
[1724798564847,9.1792,2452.4,2451.2,1.73547155]
[1724798565050,9.1792,2452.4,2451.2,0.46072477]
[1724798565249,0.06574159,2452.3,2451.3,0.46072477]
[1724798565758,0.06574159,2452.3,2451.4,0.08155573]
[1724798566047,9.5403,2452.9,2451.5,0.95067597]
[1724798566259,9.5403,2452.9,2451.6,0.08153104]
[1724798566548,0.06249015,2452.8,2451.7,1.01072477]
[1724798566751,9.5403,2452.9,2451.8,0.0815328]
[1724798566955,9.5403,2452.9,2451.9,0.46072477]
[1724798567244,0.65084114,2454.6,2452.0,9.68182977]
[1724798567245,9.95630607,2453.8,2452.0,9.68182977]
[1724798567459,0.03142775,2453.7,2452.1,3.0]
[1724798567660,0.03142775,2453.7,2452.2,0.08151964]
[1724798567960,0.0939179,2453.7,2452.2,1.26818196]
[1724798568140,0.0939179,2453.7,2451.7,3.0]
[1724798568339,0.0939179,2453.7,2451.8,0.08153499]
[1724798568529,0.06249015,2453.7,2451.8,0.54225976]
[1724798568715,0.06249015,2453.7,2451.9,0.35422598]
[1724798568916,0.0939179,2453.7,2451.9,0.35422598]
[1724798569159,0.55,2453.6,2451.9,0.4357567]
[1724798569370,0.09459893,2453.5,2451.9,0.89648147]
[1724798569514,0.55,2453.4,2452.0,35.46072477]
[1724798569710,0.03142775,2453.3,2452.1,6.67118062]
[1724798570155,0.03142775,2453.7,2452.2,0.08153359]
[1724798570351,9.741,2453.1,2452.3,35.0]
[1724798570665,0.06317118,2453.0,2452.4,3.0]
[1724798570857,0.06317118,2453.0,2452.5,0.08153109]
[1724798571062,9.741,2453.1,2452.5,0.08153109]
[1724798571353,9.741,2453.7,2452.5,3.80815311]
[1724798571511,9.741,2453.7,2452.6,3.0]
[1724798571512,0.03142775,2453.6,2452.6,3.0]
[1724798571715,0.06317118,2453.6,2452.7,0.76234159]
[1724798571945,0.06317118,2453.6,2452.7,0.68081531]
[1724798572130,0.06317118,2453.6,2452.8,0.08149935]
[1724798572463,9.1459,2453.9,2452.7,0.68081531]
[1724798572662,9.1459,2453.9,2452.8,0.36808153]
[1724798573224,9.1459,2453.9,2452.6,1.05889684]
[1724798573422,9.1459,2453.9,2452.7,0.486705]
[1724798573725,9.1459,2453.9,2452.7,0.94742977]
[1724798573977,9.1459,2453.9,2452.7,0.486705]
[1724798574800,9.1459,2453.9,2452.8,0.08151248]
[1724798575006,9.1459,2453.9,2452.7,0.486705]
[1724798575301,9.1459,2453.9,2452.8,35.0]
[1724798575506,9.1459,2453.9,2452.9,3.08150459]
[1724798575714,9.1459,2453.9,2452.9,3.0]
[1724798576903,0.03142775,2453.8,2452.9,3.0]
[1724798577417,9.59050576,2453.7,2452.2,3.46072477]
[1724798577702,9.59050576,2453.7,2452.3,36.08148329]
[1724798577916,0.55,2453.6,2452.4,3.0]
[1724798578072,1.7422516,2453.6,2452.5,3.90814833]
[1724798578277,1.7422516,2453.6,2452.6,3.0]
[1724798578591,0.06527127,2453.5,2452.3,0.99996248]
[1724798578806,9.12172775,2453.4,2452.3,0.99996248]
[1724798579106,0.06506361,2453.3,2452.3,0.99996248]
[1724798579261,0.06506361,2453.3,2452.3,1.08149102]
[1724798580399,0.06506361,2453.3,2452.3,0.99996248]
[1724798580613,0.06506361,2453.3,2451.8,13.76832475]
[1724798580915,0.06506361,2453.3,2451.9,35.55]
[1724798581062,0.06506361,2453.3,2452.0,3.0]
[1724798581262,0.06506361,2453.3,2452.1,3.8]
[1724798581263,1.01202772,2453.3,2452.1,3.8]
[1724798581492,10.4056,2453.2,2451.4,1.03464494]
[1724798581688,10.4056,2453.2,2451.4,36.03464494]
[1724798581689,9.1644,2453.0,2451.4,36.03464494]
[1724798581904,9.1644,2452.8,2451.4,35.0]
[1724798582089,0.03142775,2452.7,2451.5,4.01493556]
[1724798582409,0.09643367,2452.7,2451.5,4.01493556]
[1724798582608,9.1644,2452.6,2451.0,0.1227464]
[1724798582810,0.03142775,2452.5,2451.4,35.0]
[1724798583105,1.86251112,2452.5,2451.5,0.45939112]
[1724798583466,1.86251112,2452.5,2451.0,0.1227464]
[1724798583467,9.62454811,2452.4,2451.0,0.1227464]
[1724798583667,9.62454811,2452.4,2451.1,0.08156819]
[1724798583982,9.62454811,2452.4,2451.0,0.1227464]
[1724798583983,6.45632475,2451.8,2451.0,0.1227464]
[1724798584166,9.5602,2451.6,2451.0,0.1227464]
[1724798584499,0.03142775,2451.5,2451.0,0.1227464]
[1724798584679,0.6436177,2451.5,2451.0,0.1227464]
[1724798585009,0.06218995,2451.5,2451.0,0.1227464]
[1724798587283,0.06218995,2451.5,2451.1,0.08157916]
[1724798587608,9.7896,2452.0,2451.1,0.57007343]
[1724798587968,9.7896,2452.0,2451.1,0.48849427]
[1724798588169,9.7896,2452.0,2451.2,0.0815678]
[1724798588372,9.7896,2452.0,2451.2,35.57006207]
[1724798588611,9.7896,2452.0,2451.3,3.55700621]
[1724798589286,9.7896,2452.0,2451.3,3.63857397]
[1724798589534,9.7896,2452.0,2451.3,4.12706824]
[1724798590012,9.1194,2452.5,2451.4,0.48849427]
[1724798590173,0.08943927,2452.4,2451.5,0.41270682]
[1724798590367,0.08943927,2452.4,2451.0,0.1227464]
[1724798590368,9.1194,2452.3,2451.0,0.1227464]
[1724798590567,9.1194,2452.1,2451.0,0.1227464]
[1724798590765,0.08943927,2452.0,2451.0,0.1227464]
[1724798591316,9.8478,2451.9,2451.0,0.1227464]